fUSD/lending_fUSD_20240225
["ID","MTS","AMOUNT","RATE_DAILY","PERIOD"]
[315172805,1708900253525,-800.0,0.00023808,2]
[315172806,1708900253534,-200.0,0.00023808,2]
[315172807,1708900253543,-500.0,0.00023808,2]
[315172808,1708900253552,-626.6768993,0.00023808,2]
[315172809,1708900253561,-1557.88503181,0.00023809,2]
[315172810,1708900253569,-150.0,0.00023811,2]
[315172811,1708900253578,-1500.0,0.00023818,2]
[315172812,1708900253587,-1500.0,0.0002382,2]
[315172813,1708900253596,-1500.0,0.00023849,2]
[315172814,1708900253604,-150.0,0.00023854,2]
[315172815,1708900253613,-189267.6067158,0.00023864,2]
[315172816,1708900253622,-194439.9850529,0.00023864,2]
[315172817,1708900253631,-150.0,0.00023871,2]
[315172818,1708900253640,-171.14,0.00023879,2]
[315172819,1708900253650,-124286.42199218,0.0002388,3]
[315172820,1708900253659,-5800.0,0.00023883,2]
[315172821,1708900253668,-199612.3633899,0.00023884,2]
[315172822,1708900253676,-1500.0,0.0002389,2]
[315172823,1708900253686,-150.0,0.00023891,2]
[315172824,1708900253695,-5800.0,0.00023892,2]
[315172825,1708900253704,-1000.0,0.00023899,2]
[315172826,1708900253714,-398.782,0.000239,2]
[315172827,1708900253723,-849.0,0.000239,2]
[315172828,1708900253732,-205.535,0.000239,2]
[315172829,1708900253742,-336.0,0.000239,2]
[315172830,1708900253751,-1201.385,0.000239,2]
[315172831,1708900253760,-322.0,0.000239,2]
[315172832,1708900253770,-390.0,0.000239,2]
[315172833,1708900253779,-211.767,0.000239,2]
[315172834,1708900253789,-162.0,0.000239,2]
[315172835,1708900253798,-2480.708,0.000239,2]
[315172836,1708900253807,-2296.0,0.000239,2]
[315172837,1708900253817,-19905.0,0.000239,2]
[315172838,1708900253825,-169.866,0.000239,2]
[315172839,1708900253834,-956.0,0.000239,2]
[315172840,1708900253844,-1040.0,0.000239,2]
[315172841,1708900253853,-534.0,0.000239,2]
[315172842,1708900253862,-1557.88503181,0.000239,2]
[315172843,1708900253871,-5800.0,0.000239,2]
[315172844,1708900253880,-2346.34373374,0.000239,2]
[315172845,1708900253888,-8651.63503606,0.000239,2]
[315172846,1708900253898,-150.0,0.00023908,2]
[315172847,1708900253907,-242.55040476,0.00023913,2]
[315172848,1708900253915,-150.0,0.00023914,2]
[315172849,1708900253924,-150.0,0.00023938,2]
[315172850,1708900253933,-1500.0,0.00023942,2]
[315172851,1708900253942,-151.04,0.00023948,2]
[315172852,1708900253950,-1500.0,0.00023966,2]
[315172853,1708900253959,-204784.741727,0.00023968,2]
[315172854,1708900253969,-700.0,0.0002397,2]
[315172855,1708900253978,-9511.1474412,0.00023984,2]
[315172856,1708900253987,-9771.071756,0.00023984,2]
[315172857,1708900253996,-10030.9960708,0.00023984,2]
[315172858,1708900254005,-10290.9203856,0.00023984,2]
[315172859,1708900254014,-150.0,0.00023987,2]
[315172860,1708900254023,-21236.02057212,0.00023989,2]
[315172861,1708900254032,-164.0,0.0002399,2]
[315172862,1708900254041,-213.784,0.0002399,2]
[315172863,1708900254050,-150.202,0.0002399,2]
[315172864,1708900254059,-171.14,0.00023994,2]
[315172865,1708900254068,-1500.0,0.00023995,2]
[315172866,1708900254077,-151.022606,0.00023998,3]
[315172867,1708900254086,-151.022606,0.00023998,3]
[315172868,1708900254095,-151.022606,0.00023998,3]
[315172869,1708900254105,-151.022606,0.00023998,3]
[315172870,1708900254114,-151.022606,0.00023998,3]
[315172871,1708900254123,-151.022606,0.00023998,3]
[315172872,1708900254132,-151.022606,0.00023998,3]
[315172873,1708900254141,-151.022606,0.00023998,3]
[315172874,1708900254150,-151.022606,0.00023998,3]
[315172875,1708900254159,-151.022606,0.00023998,3]
[315172876,1708900254167,-151.022606,0.00023998,3]
[315172877,1708900254176,-151.022606,0.00023998,3]
[315172878,1708900254185,-151.022606,0.00023998,3]
[315172879,1708900254195,-151.022606,0.00023998,3]
[315172880,1708900254205,-151.022606,0.00023998,3]
[315172881,1708900254214,-151.022606,0.00023998,3]
[315172882,1708900254224,-151.022606,0.00023998,3]
[315172883,1708900254233,-151.022606,0.00023998,3]
[315172884,1708900254242,-151.022606,0.00023998,3]
[315172885,1708900254251,-151.022606,0.00023998,3]
[315172886,1708900254261,-151.022606,0.00023998,3]
[315172887,1708900254270,-151.022606,0.00023998,3]
[315172888,1708900254279,-151.022606,0.00023998,3]
[315172889,1708900254289,-151.022606,0.00023998,3]
[315172890,1708900254298,-151.022606,0.00023998,3]
[315172891,1708900254308,-151.022606,0.00023998,3]
[315172892,1708900254317,-151.022606,0.00023998,3]
[315172893,1708900254329,-151.022606,0.00023998,3]
[315172894,1708900254338,-151.022606,0.00023998,3]
[315172895,1708900254347,-151.022606,0.00023998,3]
[315172896,1708900254357,-151.022606,0.00023998,3]
[315172897,1708900254367,-151.022606,0.00023998,3]
[315172898,1708900254376,-151.022606,0.00023998,3]
[315172899,1708900254386,-151.022606,0.00023998,3]
[315172900,1708900254397,-163.022606,0.00023998,3]
[315172901,1708900254408,-163.022606,0.00023998,3]
[315172902,1708900254418,-163.022606,0.00023998,3]
[315172903,1708900254428,-163.022606,0.00023998,3]
[315172904,1708900254438,-163.022606,0.00023998,3]
[315172905,1708900254448,-163.022606,0.00023998,3]
[315172906,1708900254458,-163.022606,0.00023998,3]
[315172907,1708900254468,-150.0,0.00023998,2]
[315172908,1708900254477,-5186991.11981005,0.00024,30]
[315172909,1708900254766,-664.3,0.00024,30]
[315172910,1708900255000,-649.87,0.00021999,2]
[315172911,1708900255011,-501.44610929,0.0002262,2]
[315172912,1708900255021,-500.0,0.00022998,2]
[315172913,1708900255030,-217.0,0.000239,2]
[315172914,1708900255039,-395.03427948,0.000239,2]
[315172915,1708900255051,-862.96572052,0.000239,2]
[315172916,1708900255060,-23640.11746635,0.00024,30]
[315172917,1708900255080,-881.92089336,0.00024,30]
[315172918,1708900255093,-322.64894999,0.00024,30]
[315172919,1708900255413,-2758.6,0.00022306,2]
[315172920,1708900255425,-1037.4495914,0.00022306,2]
[315172921,1708900255725,-3027.6804086,0.00022306,2]
[315172922,1708900255735,-523.48077291,0.000229,2]
[315172923,1708900255745,-500.0,0.00022999,2]
[315172924,1708900255755,-500.0,0.00022999,2]
[315172925,1708900255765,-500.0,0.00022999,2]
[315172926,1708900255774,-500.0,0.00022999,2]
[315172927,1708900255783,-500.0,0.00022999,2]
[315172928,1708900255793,-500.0,0.00022999,2]
[315172929,1708900255803,-500.0,0.00022999,2]
[315172930,1708900255812,-1231.0,0.00023754,2]
[315172931,1708900255821,-448.86188455,0.00023999,2]
[315172932,1708900255831,-13424.71667206,0.00024,30]
[315172933,1708900255853,-500.0,0.00022999,2]
[315172934,1708900255863,-416.88079742,0.00024,30]
[315172935,1708900255982,-512.52346926,0.00021999,2]
[315172936,1708900255992,-500.0,0.00022999,2]
[315172937,1708900256001,-530.97,0.00022999,2]
[315172938,1708900256011,-4111.71653074,0.00024,30]
[315172939,1708900256564,-63096.74315085,0.00024,30]
[315172940,1708900256584,-7946.70898353,0.00024,30]
[315172943,1708900266005,230.8,0.00016712,2]
[315172944,1708900323902,151.0,0.00026895,120]
[315172945,1708900414575,1462.74,0.00021794,2]
[315172947,1708900448778,2000.0,0.00021604,2]
[315172948,1708900466860,500.0,0.0002164,2]
[315172949,1708900473583,500.0,0.00021596,2]
[315172950,1708900485119,200.0,0.00021596,2]
[315172951,1708900501656,158.35995425,0.00021818,2]
[315172952,1708900504090,200.0,0.00021444,2]
[315172953,1708900526868,200.0,0.00021407,2]
[315172954,1708900530944,482.36316452,0.00021406,2]
[315172955,1708900531832,232.09,0.00021407,2]
[315172956,1708900543059,151.0,0.00026958,120]
[315172957,1708900555323,197.33,0.00021627,2]
[315172958,1708900555556,197.33,0.00021686,2]
[315172959,1708900555790,197.33,0.00021745,2]
[315172960,1708900555999,197.33,0.00021805,2]
[315172961,1708900556247,197.33,0.00021864,2]
[315172962,1708900564350,206.0,0.00021306,2]
[315173225,1708900614619,184.53688123,0.00021314,2]
[315173226,1708900614640,351.60311877,0.00021314,2]
[315173227,1708900618646,311.08241579,0.00020953,2]
[315173228,1708900631573,250.0,0.00021314,2]
[315173229,1708900653666,409.92,0.00021314,2]
[315173230,1708900676407,2577.37,0.00021322,2]
[315173231,1708900726404,1190.74,0.00019404,2]
[315173232,1708900726757,1190.74,0.00021668,2]
[315173233,1708900742077,152.0,0.00021793,3]
[315173234,1708900756638,2744.9,0.00021257,2]
[315173235,1708900768457,373.0,0.00021257,2]
[315173236,1708900769251,12000.0,0.000232,7]
[315173237,1708900797948,159.89,0.00021251,2]
[315173238,1708900802818,150.0,0.00021251,2]
[315173239,1708900809099,23900.0,0.00021251,2]
[315173240,1708900824349,150.0,0.00020953,2]
[315173241,1708900825781,150.0,0.00021501,2]
[315173242,1708900826187,2705.0,0.00021295,2]
[315173243,1708900826385,2827.14,0.00021295,2]
[315173244,1708900840006,2405.37,0.00021298,2]
[315173245,1708900849657,36234.21217535,0.0002,2]
[315173246,1708900891740,150.0,0.00021419,2]
[315173248,1708900923668,465.8,0.00021299,2]
[315173249,1708900923690,227.32,0.00021299,2]
[315173250,1708900933790,154.64789603,0.00021852,2]
[315173251,1708900959870,174.05623017,0.00020949,2]
[315173253,1708900990492,2000.0,0.00021305,2]
[315173254,1708901027299,156.01,0.00021611,2]
[315173255,1708901027568,156.01,0.00021671,2]
[315173256,1708901027793,156.01,0.0002173,2]
[315173257,1708901027983,156.01,0.00021789,2]
[315173258,1708901028289,156.01,0.00021849,2]
[315173259,1708901059485,-615.82016421,0.00021907,2]
[315173260,1708901059506,-156.01,0.00021908,2]
[315173261,1708901099304,154.64789601,0.00021862,2]
[315173262,1708901102495,150.0,0.00021917,2]
[315173263,1708901135306,250.0,0.0002136,2]
[315173264,1708901186154,615.82016421,0.00021917,2]
[315173265,1708901204785,8057.70177557,0.00021536,2]
[315173266,1708901204813,320764.50500238,0.00021536,2]
[315173267,1708901204842,33333.0,0.00021536,2]
[315173268,1708901205147,-150.0,0.00021536,2]
[315173269,1708901205704,-150.0,0.00021536,2]
[315173270,1708901206336,-190.17,0.00021536,2]
[315173271,1708901212860,150.0,0.00019421,2]
[315173272,1708901212881,150.0,0.00019421,2]
[315173273,1708901212901,150.0,0.00019421,2]
[315173274,1708901212921,150.0,0.00019421,2]
[315173275,1708901212941,150.0,0.00019421,2]
[315173276,1708901212961,150.0,0.00019421,2]
[315173277,1708901212985,150.0,0.00019421,2]
[315173278,1708901213027,21.66,0.00019421,2]
[315173280,1708901230085,151.0,0.00026923,120]
[315173283,1708901346111,-1213.04868299,0.00020996,2]
[315173284,1708901346131,-642.22672279,0.00020997,2]
[315173285,1708901346151,-355.14,0.00020999,2]
[315173286,1708901346171,-206.0,0.00021149,2]
[315173287,1708901346192,-203.0,0.00021149,2]
[315173288,1708901346214,-204.0,0.00021149,2]
[315173289,1708901346235,-672.06,0.00021333,2]
[315173290,1708901346255,-2287.42,0.0002134,2]
[315173291,1708901352132,-150.0,0.00021535,2]
[315173292,1708901352151,-5795.2322,0.00021536,2]
[315173293,1708901353392,12052.73,0.00021382,2]
[315173294,1708901356125,-3257.26235655,0.00021536,2]
[315173301,1708901431844,-226.74,0.00021394,2]
[315173302,1708901431854,-144.23730707,0.00021536,2]
[315173303,1708901431866,-5875.89135843,0.00021536,2]
[315173304,1708901431876,-1071.66,0.00021684,2]
[315173305,1708901431885,-153.32,0.00021918,2]
[315173306,1708901431895,-662.95,0.00021918,2]
[315173307,1708901431904,-9201.41,0.00021918,2]
[315173308,1708901431913,-500.0,0.00021948,2]
[315173309,1708901431922,-500.0,0.00021948,2]
[315173310,1708901431932,-280.15324502,0.00021948,2]
[315173311,1708901431941,-500.0,0.00021948,2]
[315173312,1708901431950,-500.0,0.00021948,2]
[315173313,1708901431960,-500.0,0.00021948,2]
[315173314,1708901431969,-500.0,0.00021948,2]
[315173315,1708901431979,-500.0,0.00021948,2]
[315173316,1708901431989,-500.0,0.00021948,2]
[315173317,1708901431999,-500.0,0.00021948,2]
[315173318,1708901432008,-500.0,0.00021948,2]
[315173319,1708901432018,-500.0,0.00021948,2]
[315173320,1708901432027,-500.0,0.00021948,2]
[315173321,1708901432036,-500.0,0.00021948,2]
[315173322,1708901432045,-500.0,0.00021948,2]
[315173323,1708901432054,-500.0,0.00021948,2]
[315173324,1708901432064,-159.9411906,0.00021948,2]
[315173326,1708901432073,-500.0,0.00021948,2]
[315173328,1708901432082,-500.0,0.00021948,2]
[315173330,1708901432090,-500.0,0.00021948,2]
[315173332,1708901432099,-500.0,0.00021948,2]
[315173334,1708901432108,-500.0,0.00021948,2]
[315173336,1708901432117,-500.0,0.00021948,2]
[315173338,1708901432126,-500.0,0.00021948,2]
[315173340,1708901432136,-500.0,0.00021948,2]
[315173341,1708901432145,-500.0,0.00021948,2]
[315173344,1708901432154,-500.0,0.00021948,2]
[315173345,1708901432163,-500.0,0.00021948,2]
[315173347,1708901432172,-500.0,0.00021948,2]
[315173349,1708901432182,-500.0,0.00021948,2]
[315173351,1708901432191,-500.0,0.00021948,2]
[315173353,1708901432200,-274.01603313,0.00021948,2]
[315173355,1708901432209,-500.0,0.00021948,2]
[315173358,1708901432219,-499.99,0.00021962,2]
[315173360,1708901432228,-165.41,0.00021962,2]
[315173361,1708901432237,-156.01,0.00021967,2]
[315173364,1708901432248,-500.0,0.00021999,2]
[315173366,1708901432257,-150.99,0.00021999,2]
[315173367,1708901432266,-500.0,0.00021999,2]
[315173370,1708901432275,-500.0,0.00021999,2]
[315173371,1708901432285,-500.0,0.00021999,2]
[315173373,1708901432294,-500.0,0.00021999,2]
[315173375,1708901432304,-620.79,0.00021999,2]
[315173377,1708901432313,-522.06525251,0.00021999,2]
[315173379,1708901432322,-500.0,0.00021999,2]
[315173381,1708901432331,-156.01,0.00022026,2]
[315173383,1708901432340,-153.32,0.00022033,2]
[315173385,1708901432350,-662.95,0.00022033,2]
[315173387,1708901432359,-156.01,0.00022086,2]
[315173389,1708901432367,-156.01,0.00022145,2]
[315173391,1708901432377,-153.32,0.00022149,2]
[315173393,1708901432385,-662.95,0.00022149,2]
[315173395,1708901432394,-156.01,0.00022204,2]
[315173397,1708901432403,-156.01,0.00022263,2]
[315173399,1708901432412,-153.32,0.00022264,2]
[315173401,1708901432421,-662.95,0.00022264,2]
[315173403,1708901432430,-150.0,0.00022313,2]
[315173405,1708901432439,-5323.824,0.00022319,2]
[315173407,1708901432449,-156.01,0.00022323,2]
[315173409,1708901432458,-153.32,0.00022379,2]
[315173411,1708901432467,-662.95,0.00022379,2]
[315173413,1708901432477,-156.01,0.00022382,2]
[315173415,1708901432486,-500.0,0.00022418,2]
[315173417,1708901432495,-500.0,0.00022418,2]
[315173419,1708901432504,-500.0,0.00022418,2]
[315173421,1708901432513,-249.37020378,0.00022418,2]
[315173423,1708901432522,-500.0,0.00022418,2]
[315173425,1708901432532,-500.0,0.00022418,2]
[315173427,1708901432541,-500.0,0.00022418,2]
[315173429,1708901432551,-500.0,0.00022418,2]
[315173431,1708901432560,-500.0,0.00022418,2]
[315173433,1708901432570,-500.0,0.00022418,2]
[315173435,1708901432579,-500.0,0.00022418,2]
[315173436,1708901432588,-500.0,0.00022418,2]
[315173438,1708901432597,-500.0,0.00022418,2]
[315173440,1708901432608,-500.0,0.00022418,2]
[315173441,1708901432617,-500.0,0.00022418,2]
[315173443,1708901432626,-500.0,0.00022418,2]
[315173445,1708901432635,-500.0,0.00022418,2]
[315173447,1708901432644,-500.0,0.00022418,2]
[315173449,1708901432654,-500.0,0.00022418,2]
[315173450,1708901432663,-500.0,0.00022418,2]
[315173452,1708901432672,-500.0,0.00022418,2]
[315173454,1708901432682,-500.0,0.00022418,2]
[315173456,1708901432693,-500.0,0.00022418,2]
[315173457,1708901432702,-500.0,0.00022418,2]
[315173459,1708901432710,-500.0,0.00022418,2]
[315173461,1708901432720,-500.0,0.00022418,2]
[315173463,1708901432731,-500.0,0.00022418,2]
[315173465,1708901432740,-500.0,0.00022418,2]
[315173466,1708901432749,-500.0,0.00022418,2]
[315173468,1708901432758,-500.0,0.00022418,2]
[315173470,1708901432767,-156.01,0.00022441,2]
[315173472,1708901432779,-153.32,0.00022495,2]
[315173474,1708901432788,-662.95,0.00022495,2]
[315173475,1708901432797,-156.01,0.000225,2]
[315173477,1708901432806,-500.0,0.00022518,2]
[315173479,1708901432816,-500.0,0.00022518,2]
[315173481,1708901432825,-500.0,0.00022518,2]
[315173483,1708901432834,-284.9308,0.00022521,2]
[315173484,1708901432843,-9934.6561,0.00022521,2]
[315173486,1708901432853,-9462.0885,0.00022521,2]
[315173488,1708901432862,-500.0,0.00022539,2]
[315173490,1708901432871,-500.0,0.00022539,2]
[315173492,1708901432880,-500.0,0.00022539,2]
[315173493,1708901432889,-500.0,0.00022539,2]
[315173495,1708901432898,-156.01,0.0002256,2]
[315173497,1708901432907,-153.32,0.0002261,2]
[315173499,1708901432916,-662.95,0.0002261,2]
[315173501,1708901432925,-156.01,0.00022619,2]
[315173502,1708901432933,-500.0,0.00022619,2]
[315173504,1708901432942,-500.0,0.00022619,2]
[315173506,1708901432951,-500.0,0.00022619,2]
[315173508,1708901432960,-500.0,0.00022619,2]
[315173509,1708901432969,-500.0,0.00022619,2]
[315173511,1708901432978,-500.0,0.0002262,2]
[315173513,1708901432987,-500.0,0.0002262,2]
[315173515,1708901432996,-500.0,0.0002262,2]
[315173516,1708901433006,-500.0,0.0002262,2]
[315173518,1708901433015,-500.0,0.0002262,2]
[315173520,1708901433024,-634.85956668,0.0002262,2]
[315173522,1708901433033,-14555.4341,0.00022621,2]
[315173524,1708901433043,-63243.2137,0.00022621,2]
[315173525,1708901433051,-245000.0,0.00022621,2]
[315173527,1708901433060,-156.01,0.00022678,2]
[315173529,1708901433069,-500.0,0.00022719,2]
[315173531,1708901433078,-500.0,0.00022719,2]
[315173533,1708901433087,-500.0,0.0002272,2]
[315173535,1708901433097,-500.0,0.0002272,2]
[315173537,1708901433105,-500.0,0.0002272,2]
[315173538,1708901433115,-500.0,0.0002272,2]
[315173540,1708901433124,-153.32,0.00022725,2]
[315173542,1708901433133,-662.95,0.00022725,2]
[315173544,1708901433142,-156.01,0.00022737,2]
[315173546,1708901433151,-165.03,0.0002274,2]
[315173548,1708901433160,-153.32,0.00022841,2]
[315173550,1708901433168,-662.95,0.00022841,2]
[315173551,1708901433177,-206.8619,0.000229,2]
[315173553,1708901433187,-200.0,0.00022904,2]
[315173555,1708901433196,-153.32,0.00022956,2]
[315173557,1708901433205,-662.95,0.00022956,2]
[315173559,1708901433214,-2287.42,0.00022983,2]
[315173561,1708901433223,-500.0,0.00022998,2]
[315173562,1708901433232,-500.0,0.00022998,2]
[315173564,1708901433241,-500.0,0.00022999,2]
[315173566,1708901433251,-500.0,0.00022999,2]
[315173568,1708901433260,-500.0,0.00022999,2]
[315173570,1708901433269,-500.0,0.00022999,2]
[315173572,1708901433278,-500.0,0.00022999,2]
[315173574,1708901433287,-500.0,0.00022999,2]
[315173575,1708901433296,-500.0,0.00022999,2]
[315173577,1708901433305,-500.0,0.00022999,2]
[315173579,1708901433314,-500.0,0.00022999,2]
[315173581,1708901433323,-500.0,0.00022999,2]
[315173583,1708901433331,-500.0,0.00022999,2]
[315173585,1708901433340,-500.0,0.00022999,2]
[315173587,1708901433349,-500.0,0.00022999,2]
[315173588,1708901433358,-500.0,0.00022999,2]
[315173590,1708901433367,-500.0,0.00022999,2]
[315173592,1708901433376,-500.0,0.00022999,2]
[315173594,1708901433385,-500.0,0.00022999,2]
[315173596,1708901433394,-500.0,0.00022999,2]
[315173598,1708901433403,-500.0,0.00022999,2]
[315173600,1708901433412,-500.0,0.00022999,2]
[315173601,1708901433421,-500.0,0.00022999,2]
[315173603,1708901433430,-500.0,0.00022999,2]
[315173605,1708901433439,-500.0,0.00022999,2]
[315173607,1708901433448,-500.0,0.00022999,2]
[315173609,1708901433457,-500.0,0.00022999,2]
[315173611,1708901433466,-500.0,0.00022999,2]
[315173613,1708901433475,-500.0,0.00022999,2]
[315173614,1708901433484,-500.0,0.00022999,2]
[315173616,1708901433494,-500.89383142,0.00022999,2]
[315173618,1708901433504,-691.3,0.00023,4]
[315173620,1708901433513,-500.0,0.00023,2]
[315173622,1708901433522,-1739.88694204,0.00023,2]
[315173624,1708901433532,-313.63404833,0.00023,2]
[315173626,1708901433542,-2250.0,0.00023,3]
[315173628,1708901433552,-2000.0,0.00023,2]
[315173629,1708901433561,-153.32,0.00023072,2]
[315173631,1708901433571,-662.95,0.00023072,2]
[315173633,1708901433580,-206.0,0.00023091,4]
[315173635,1708901433590,-413.26,0.00023178,2]
[315173637,1708901433599,-150.0,0.00023178,2]
[315173639,1708901433608,-424.04,0.00023178,2]
[315173641,1708901433616,-194.12,0.00023178,2]
[315173642,1708901433626,-344.67,0.00023178,2]
[315173644,1708901433635,-196.84,0.00023178,2]
[315173646,1708901433644,-150.0,0.00023178,2]
[315173648,1708901433654,-150.0,0.00023178,2]
[315173650,1708901433663,-344.67,0.00023178,2]
[315173652,1708901433673,-424.04,0.00023178,2]
[315173654,1708901433683,-150.0,0.00023178,2]
[315173656,1708901433697,-413.26,0.00023178,2]
[315173658,1708901433706,-150.0,0.00023178,2]
[315173660,1708901433715,-344.67,0.00023178,2]
[315173662,1708901433724,-150.0,0.00023178,2]
[315173663,1708901433733,-424.04,0.00023178,2]
[315173665,1708901433742,-150.0,0.00023178,2]
[315173667,1708901433753,-150.0,0.00023178,2]
[315173669,1708901433763,-150.0,0.00023178,2]
[315173671,1708901433773,-413.26,0.00023178,2]
[315173673,1708901433782,-413.26,0.00023178,2]
[315173674,1708901433791,-150.0,0.00023178,2]
[315173676,1708901433800,-170.76,0.00023178,2]
[315173677,1708901433809,-424.04,0.00023178,2]
[315173678,1708901433818,-150.0,0.00023178,2]
[315173679,1708901433828,-150.0,0.00023178,2]
[315173680,1708901433837,-413.26,0.00023178,2]
[315173681,1708901433846,-150.0,0.00023178,2]
[315173682,1708901433856,-150.0,0.00023178,2]
[315173683,1708901433865,-150.0,0.00023178,2]
[315173684,1708901433874,-150.0,0.00023178,2]
[315173685,1708901433883,-424.04,0.00023178,2]
[315173686,1708901433892,-413.26,0.00023178,2]
[315173687,1708901433902,-424.04,0.00023178,2]
[315173688,1708901433910,-150.0,0.00023178,2]
[315173689,1708901433922,-150.0,0.00023178,2]
[315173690,1708901433931,-150.0,0.00023178,2]
[315173692,1708901433940,-424.04,0.00023178,2]
[315173693,1708901433949,-150.0,0.00023178,2]
[315173694,1708901433958,-150.0,0.00023178,2]
[315173696,1708901433967,-150.0,0.00023178,2]
[315173698,1708901433977,-413.26,0.00023178,2]
[315173700,1708901433986,-413.26,0.00023178,2]
[315173702,1708901433995,-150.0,0.00023178,2]
[315173704,1708901434004,-150.0,0.00023178,2]
[315173706,1708901434013,-379.7,0.00023178,2]
[315173708,1708901434022,-150.0,0.00023178,2]
[315173710,1708901434032,-150.0,0.00023178,2]
[315173712,1708901434041,-413.26,0.00023178,2]
[315173714,1708901434050,-153.32,0.00023187,2]
[315173716,1708901434060,-662.95,0.00023187,2]
[315173718,1708901434069,-500.0,0.00023199,2]
[315173720,1708901434078,-615.41,0.00023199,2]
[315173722,1708901434087,-15838.0,0.000232,2]
[315173724,1708901434095,-623.42,0.0002327,2]
[315173726,1708901434106,-153.32,0.00023302,2]
[315173729,1708901434115,-662.95,0.00023302,2]
[315173730,1708901434125,-155.0,0.00023399,2]
[315173732,1708901434134,-1349.88763019,0.00023412,2]
[315173734,1708901434143,-153.32,0.00023418,2]
[315173736,1708901434153,-662.95,0.00023418,2]
[315173738,1708901434162,-169.65932675,0.00023421,2]
[315173741,1708901434171,-150.0,0.00023452,2]
[315173742,1708901434180,-150.0,0.00023452,2]
[315173744,1708901434189,-150.0,0.00023452,2]
[315173746,1708901434198,-150.0,0.00023452,2]
[315173748,1708901434208,-924.87,0.00023454,2]
[315173750,1708901434216,-2000.0,0.000235,2]
[315173752,1708901434226,-500.0,0.00023521,2]
[315173754,1708901434235,-153.32,0.00023533,2]
[315173757,1708901434245,-662.95,0.00023533,2]
[315173759,1708901434254,-515.18351411,0.00023548,2]
[315173761,1708901434263,-192.43666526,0.00023561,2]
[315173763,1708901434272,-153.32,0.00023648,2]
[315173765,1708901434282,-662.95,0.00023648,2]
[315173767,1708901434291,-3947.1088,0.0002366,2]
[315173769,1708901434300,-1000.0,0.0002366,2]
[315173771,1708901434309,-210.0,0.00023688,2]
[315173773,1708901434318,-150.0,0.00023727,2]
[315173775,1708901434326,-150.0,0.00023738,2]
[315173777,1708901434335,-150.0,0.00023739,2]
[315173779,1708901434345,-204.78940017,0.0002374,2]
[315173781,1708901434355,-150.0,0.00023743,2]
[315173783,1708901434364,-300.0,0.00023744,2]
[315173785,1708901434372,-150.0,0.00023746,2]
[315173787,1708901434382,-300.0,0.00023752,2]
[315173789,1708901434391,-150.0,0.00023753,2]
[315173791,1708901434400,-150.0,0.00023753,2]
[315173793,1708901434410,-1349.88763019,0.00023755,2]
[315173795,1708901434419,-153.32,0.00023764,2]
[315173797,1708901434428,-662.95,0.00023764,2]